bitfinex/quotes_BTCUSD_20250303
["timestamp","ask_amount","ask_price","bid_price","bid_amount"]
[1740991923284,0.0004025,91653.0,91652.0,0.3271]
[1740991923494,0.0004025,91653.0,91643.0,0.3271]
[1740991923693,0.163664,91651.0,91644.0,0.163676]
[1740991923841,0.0004025,91653.0,91643.0,0.3271]
[1740991924046,0.0004025,91653.0,91652.0,0.163662]
[1740991924221,0.0004025,91653.0,91652.0,0.34940285]
[1740991924494,5e-07,91653.0,91652.0,1.27030285]
[1740991924661,0.0498,91704.0,91661.0,0.05]
[1740991924662,0.00190842,91703.0,91661.0,0.05]
[1740991924911,0.00190842,91703.0,91663.0,0.01454085]
[1740991924912,0.163597,91689.0,91663.0,0.01454085]
[1740991925139,0.381718,91691.0,91665.0,0.01454085]
[1740991925351,0.163594,91691.0,91684.0,0.163603]
[1740991925580,0.163591,91692.0,91683.0,0.218142]
[1740991925793,0.00190849,91701.0,91668.0,0.3271]
[1740991925993,0.218109,91697.0,91668.0,0.3271]
[1740991926204,0.163632,91669.0,91668.0,0.3271]
[1740991926404,0.3,91675.0,91654.0,0.11744]
[1740991926613,0.0779,91685.0,91655.0,0.3271]
[1740991926815,0.163631,91670.0,91656.0,0.218207]
[1740991927019,0.163647,91661.0,91655.0,0.3271]
[1740991927245,0.01001133,91678.0,91643.0,0.3271]
[1740991927450,0.163676,91644.0,91643.0,0.3271]
[1740991927651,0.163676,91644.0,91642.0,0.0004025]
[1740991927855,0.045,91657.0,91642.0,0.0004025]
[1740991928053,0.163678,91643.0,91642.0,0.0004025]
[1740991928253,0.163675,91646.0,91642.0,0.0004025]
[1740991928483,0.163669,91649.0,91642.0,0.0004025]
[1740991928706,0.045,91657.0,91642.0,0.0004025]
[1740991928707,0.3,91655.0,91642.0,0.0004025]
[1740991928896,0.3,91655.0,91652.0,0.163661]
[1740991929118,0.3,91655.0,91642.0,0.0004025]
[1740991929318,0.00190926,91654.0,91642.0,0.0004025]
[1740991929517,0.01081919,91670.0,91642.0,0.0004025]
[1740991929756,0.0824,91652.0,91642.0,0.0004025]
[1740991929935,0.00190953,91651.0,91642.0,0.0004025]
[1740991930142,0.163676,91644.0,91642.0,0.0004025]
[1740991930373,0.3,91643.0,91642.0,0.0004025]
[1740991931232,0.3,91644.0,91642.0,0.0004025]
[1740991931653,0.463677,91644.0,91642.0,0.0004025]
[1740991931993,0.163678,91643.0,91642.0,0.0004025]
[1740991932134,0.3,91644.0,91642.0,0.0004025]
[1740991932348,0.00190966,91643.0,91642.0,0.0004025]
[1740991932695,0.3,91645.0,91642.0,0.0004025]
[1740991933170,0.0767,91663.0,91642.0,0.0004025]
[1740991933404,0.032835,91668.0,91643.0,0.3271]
[1740991933770,0.0003416,91653.0,91643.0,0.3271]
[1740991935429,0.00225111,91653.0,91643.0,0.3271]
[1740991936257,0.0003416,91653.0,91643.0,0.3271]
[1740991936665,0.00225111,91653.0,91643.0,0.3271]
[1740991936853,0.0003416,91653.0,91643.0,0.3271]
[1740991937339,0.3,91648.0,91643.0,0.3271]
[1740991937558,0.0003416,91653.0,91643.0,0.3271]
[1740991937783,0.0003416,91653.0,91652.0,0.163662]
[1740991940028,0.0003416,91653.0,91641.0,0.10008438]
[1740991941169,0.00225103,91653.0,91641.0,0.10008438]
[1740991941403,0.0003416,91653.0,91641.0,0.10008438]
[1740991941600,0.3,91651.0,91641.0,0.10008438]
[1740991941804,0.3,91643.0,91641.0,0.10008438]
[1740991942200,0.463678,91643.0,91641.0,0.10008438]
[1740991947431,0.463678,91643.0,91642.0,0.0055733]
[1740991948405,0.463678,91643.0,91642.0,0.0005733]
[1740991948865,0.463678,91643.0,91642.0,0.0055733]
[1740991949320,0.463678,91643.0,91642.0,0.0005733]
[1740991949451,0.496524,91643.0,91642.0,0.0005733]
[1740991949652,0.3,91642.0,91641.0,0.07365768]
[1740991949924,0.46368,91642.0,91641.0,0.07365768]
[1740991952750,0.16368,91642.0,91641.0,0.07365768]
[1740991955349,0.16368,91642.0,91641.0,0.07765768]
[1740991955565,0.16558962,91642.0,91641.0,0.07765768]
[1740991956060,0.25583593,91642.0,91641.0,0.07765768]
[1740991956294,0.25583593,91642.0,91641.0,0.04480462]
[1740991956295,0.24048,91642.0,91641.0,0.04480462]
[1740991956496,0.2423899,91642.0,91641.0,0.04480462]
[1740991956708,0.2423899,91642.0,91641.0,0.01195156]
[1740991956910,0.34031624,91642.0,91641.0,0.00795156]
[1740991957119,0.28658,91642.0,91641.0,0.00325049]
[1740991957944,0.31752862,91642.0,91641.0,0.00325049]
[1740991958154,0.28658,91642.0,91641.0,0.00325049]
[1740991958366,0.4637,91631.0,91630.0,0.073048]
[1740991960046,0.48372696,91631.0,91630.0,0.076048]
[1740991960256,0.02002696,91631.0,91630.0,0.076048]
[1740991960802,0.32002696,91631.0,91630.0,0.076048]
[1740991961003,0.02002696,91631.0,91630.0,0.076048]
[1740991961713,0.163698,91632.0,91630.0,0.076048]
[1740991962393,0.30190982,91631.0,91630.0,0.076048]
[1740991962618,0.3,91631.0,91630.0,0.076048]
[1740991963100,0.3,91631.0,91630.0,0.073048]
[1740991963771,0.18371478,91631.0,91630.0,0.073048]
[1740991964209,0.18371478,91631.0,91630.0,0.075048]
[1740991965516,0.18371478,91631.0,91630.0,0.073048]
[1740991965729,0.18371478,91631.0,91630.0,0.075048]
[1740991965940,0.1637,91631.0,91630.0,0.075048]
[1740991966377,0.1637,91631.0,91630.0,0.073048]
[1740991967306,0.339611,91655.0,91630.0,0.073048]
[1740991967530,0.1637,91631.0,91630.0,0.073048]
[1740991967750,0.4637,91631.0,91630.0,0.073048]
[1740991968398,0.4637,91631.0,91630.0,0.076048]
[1740991968621,0.4637,91631.0,91630.0,0.0762183]
[1740991969329,0.4637,91631.0,91630.0,0.0732183]
[1740991969969,0.4637,91631.0,91630.0,0.0782183]
[1740991971393,0.1637,91631.0,91630.0,0.0782183]
[1740991972840,0.16560982,91631.0,91630.0,0.0782183]
[1740991972988,0.1637,91631.0,91630.0,0.0782183]
[1740991973394,0.18566939,91631.0,91630.0,0.0782183]
[1740991973828,0.18375952,91631.0,91630.0,0.0782183]
[1740991974104,0.02005952,91631.0,91630.0,0.0782183]
[1740991975275,0.32005952,91631.0,91630.0,0.0782183]
[1740991975504,0.02005952,91631.0,91630.0,0.0782183]
[1740991975927,0.02005952,91631.0,91630.0,0.2419193]
[1740991976127,0.18375952,91631.0,91630.0,0.0782183]
[1740991976707,0.18566941,91631.0,91630.0,0.0782183]
[1740991977521,0.21673577,91631.0,91630.0,0.0782183]
[1740991978189,0.21482588,91631.0,91630.0,0.0782183]
[1740991978357,0.05112588,91631.0,91630.0,0.0782183]
[1740991978590,0.21482588,91631.0,91630.0,0.0782183]
[1740991979216,0.19476636,91631.0,91630.0,0.0782183]
[1740991979416,0.1637,91631.0,91630.0,0.0782183]
[1740991980020,0.163693,91635.0,91630.0,0.0782183]
[1740991980223,0.00190983,91637.0,91630.0,0.0782183]
[1740991980426,0.1640216,91642.0,91630.0,0.0782183]
[1740991980759,0.163685,91640.0,91631.0,0.163699]
[1740991980961,0.163692,91636.0,91630.0,0.0782183]
[1740991981170,0.218242,91641.0,91630.0,0.0782183]
[1740991981379,0.3,91640.0,91630.0,0.0732183]
[1740991981566,0.163699,91632.0,91630.0,0.0732183]
[1740991981819,0.3,91640.0,91630.0,0.0732183]
[1740991982647,0.3,91637.0,91630.0,0.0732183]
[1740991982852,0.0003406,91641.0,91630.0,0.0732183]
[1740991983060,0.2185836,91641.0,91630.0,0.0732183]
[1740991983278,0.4637,91631.0,91630.0,0.0732183]
[1740991983482,0.49477326,91631.0,91630.0,0.0732183]
[1740991984151,0.33107326,91631.0,91630.0,0.0732183]
[1740991986191,0.3,91631.0,91630.0,0.0732183]
[1740991986430,0.331067,91631.0,91630.0,0.0732183]
[1740991986603,0.331067,91631.0,91630.0,0.0752183]
[1740991986743,0.3,91631.0,91630.0,0.0752183]
[1740991986943,0.33106653,91631.0,91630.0,0.0752183]
[1740991987138,0.3,91631.0,91630.0,0.0732183]
[1740991987553,0.33106655,91631.0,91630.0,0.0732183]
[1740991987790,0.3,91631.0,91630.0,0.0732183]
[1740991988202,0.33107028,91631.0,91630.0,0.0732183]
[1740991988851,0.33107028,91631.0,91630.0,0.0762183]
[1740991989521,0.33107028,91631.0,91630.0,0.0732183]
[1740991990154,0.33107028,91631.0,91630.0,0.0762183]
[1740991990779,0.33107028,91631.0,91630.0,0.0732183]
[1740991991582,0.33107028,91631.0,91630.0,0.04035966]
[1740991992038,0.33107028,91631.0,91630.0,0.00750102]
[1740991992387,0.463705,91628.0,91627.0,0.10457989]
[1740991992599,0.49477528,91628.0,91627.0,0.07172125]
[1740991992815,0.463728,91615.0,91614.0,0.10588843]
[1740991993018,0.49479828,91615.0,91614.0,0.10588843]
[1740991993230,0.463739,91609.0,91608.0,3.9e-07]
[1740991993631,0.57600928,91609.0,91608.0,3.9e-07]
[1740991993844,0.463748,91604.0,91603.0,0.00013089]
[1740991994180,0.463753,91601.0,91600.0,0.14412922]
[1740991994705,0.463753,91601.0,91600.0,0.08727058]
[1740991994906,0.57266944,91601.0,91600.0,0.08727058]
[1740991995106,0.463778,91587.0,91578.0,0.002]
[1740991996332,0.01063202,91601.0,91578.0,0.002]
[1740991996551,0.01063202,91601.0,91582.0,0.218383]
[1740991996808,0.01063202,91601.0,91578.0,0.002]
[1740991996809,0.163752,91602.0,91589.0,0.163774]
[1740991997052,0.00191062,91604.0,91585.0,0.218376]
[1740991997283,0.00191062,91604.0,91578.0,0.220392]
[1740991997507,0.00040225,91609.0,91608.0,0.163741]
[1740991997713,0.00040225,91609.0,91592.0,0.8709]
[1740991997921,0.00040225,91609.0,91593.0,0.218357]
[1740991998125,0.00040225,91609.0,91607.0,0.163742]
[1740991998970,0.00040225,91609.0,91608.0,0.0796]
[1740992000297,0.00240225,91609.0,91607.0,0.163742]
[1740992000583,0.00240225,91609.0,91606.0,0.5438]
[1740992000771,0.00240225,91609.0,91607.0,0.163741]
[1740992001416,0.00040225,91609.0,91607.0,0.163741]
[1740992001622,0.00040225,91609.0,91608.0,0.01454085]
[1740992001795,0.00040225,91609.0,91608.0,0.14184085]
[1740992002213,0.00040225,91609.0,91608.0,0.24184085]
[1740992002421,0.00040225,91609.0,91608.0,0.24884085]
[1740992002589,0.00040225,91609.0,91608.0,0.19884085]
[1740992002769,0.00040225,91609.0,91608.0,0.24884085]
[1740992002976,0.00040225,91609.0,91608.0,0.24184085]
[1740992003184,0.0960247,91627.0,91626.0,0.163708]
[1740992003384,0.0960247,91627.0,91626.0,0.16382817]
[1740992003594,0.016691,91628.0,91626.0,0.16382817]
[1740992003793,0.016691,91628.0,91627.0,0.96384085]
[1740992003997,0.0003406,91641.0,91640.0,0.209283]
[1740992004257,0.0003406,91641.0,91640.0,1.247663]
[1740992004411,2e-07,91642.0,91641.0,0.1]
[1740992004625,0.0963663,91653.0,91652.0,0.22820285]
[1740992005000,0.09411501,91653.0,91652.0,1.14910285]
[1740992005602,0.09411501,91653.0,91652.0,1.04946589]
[1740992005811,0.09411501,91653.0,91652.0,1.03492504]
[1740992005968,0.09411501,91653.0,91652.0,1.04192504]
[1740992006561,0.09411501,91653.0,91652.0,1.03492504]
[1740992006765,0.09411501,91653.0,91652.0,0.49812504]
[1740992007176,0.09411501,91653.0,91652.0,0.54812504]
[1740992007379,0.09411501,91653.0,91652.0,1.14192504]
[1740992007916,0.00201,91682.0,91681.0,0.16361]
[1740992008714,0.00201,91682.0,91681.0,0.70741]
[1740992009547,0.00201,91698.0,91695.0,0.163585]
[1740992009752,0.00046117,91696.0,91695.0,0.163585]
[1740992009957,0.00046117,91696.0,91695.0,0.661085]
[1740992010343,0.00046117,91696.0,91695.0,1.111585]
[1740992010960,0.00046117,91696.0,91695.0,1.034485]
[1740992011904,0.00046117,91696.0,91695.0,0.8709]
[1740992012099,0.00046117,91696.0,91695.0,0.86477088]
[1740992012410,0.00046117,91696.0,91695.0,0.86456444]
[1740992013026,0.00046117,91696.0,91695.0,0.87156444]
[1740992013228,0.00046117,91696.0,91695.0,0.007]
[1740992013600,0.00046117,91696.0,91694.0,0.163585]
[1740992014231,0.00046117,91696.0,91695.0,0.163585]
[1740992015208,0.00046117,91696.0,91695.0,0.170585]
[1740992015730,0.00046117,91696.0,91695.0,0.163585]
[1740992016662,0.00046117,91696.0,91695.0,0.170585]
[1740992019279,0.00046117,91696.0,91695.0,1.14970944]
[1740992020832,0.00046117,91696.0,91695.0,1.15007238]
[1740992022131,0.00046117,91696.0,91695.0,1.15007237]
[1740992023387,0.00046117,91696.0,91695.0,1.14307237]
[1740992024260,0.00046117,91696.0,91695.0,1.14307236]
[1740992024514,0.00046117,91696.0,91695.0,1.15007236]
[1740992024995,0.00046117,91696.0,91695.0,1.14307236]
[1740992026564,0.00201,91713.0,91712.0,0.163555]
[1740992026795,0.00201,91713.0,91712.0,1.02848236]
[1740992027076,0.00241242,91713.0,91712.0,1.18441014]
[1740992027310,0.00241242,91713.0,91712.0,1.10818235]
[1740992027543,0.00241242,91713.0,91712.0,1.15818235]
[1740992027774,4.2e-07,91713.0,91712.0,1.23441014]
[1740992027998,4.2e-07,91713.0,91712.0,1.23441013]
[1740992028471,4.2e-07,91713.0,91712.0,1.24895098]
[1740992028677,0.0003406,91734.0,91728.0,0.263526]
[1740992028893,2e-07,91734.0,91733.0,0.163518]
[1740992029100,0.00012088,91734.0,91733.0,1.02808244]
[1740992029306,0.00012088,91734.0,91733.0,1.07808244]
[1740992029513,0.00012088,91734.0,91733.0,1.16008244]
[1740992029734,0.00012088,91734.0,91733.0,1.17063785]
[1740992030079,0.00012088,91734.0,91733.0,1.22063785]
[1740992030665,8.8e-07,91734.0,91733.0,1.22063785]
[1740992030870,8.8e-07,91739.0,91738.0,0.263509]
[1740992031085,2.8e-07,91745.0,91744.0,0.263498]
[1740992031501,2.8e-07,91745.0,91744.0,1.02806244]
[1740992031952,2.8e-07,91745.0,91744.0,0.490598]
[1740992032389,2.8e-07,91745.0,91744.0,0.5432441]
[1740992032591,2.8e-07,91745.0,91744.0,0.3797461]
[1740992033199,0.46349628,91745.0,91744.0,0.3797461]
[1740992033794,0.46349628,91745.0,91744.0,0.3271]
[1740992033997,0.46349628,91745.0,91736.0,0.00036284]
[1740992033998,0.46351,91737.0,91736.0,0.00036284]
[1740992034133,0.16351,91737.0,91736.0,0.00036284]
[1740992034855,0.24051767,91737.0,91736.0,0.00036284]
[1740992035300,0.29031767,91737.0,91736.0,0.00036284]
[1740992035521,0.28841,91737.0,91736.0,0.00036284]
[1740992036163,0.30295085,91737.0,91736.0,0.00036284]
[1740992036853,0.163584,91696.0,91695.0,0.0001702]
[1740992037277,0.163584,91696.0,91695.0,0.00057262]
[1740992037714,0.47194503,91696.0,91695.0,0.00057262]
[1740992037929,0.49738064,91696.0,91695.0,0.00057262]
[1740992038145,0.48283979,91696.0,91695.0,0.00057262]
[1740992038841,0.47194503,91696.0,91695.0,0.00057262]
[1740992039478,0.48648588,91696.0,91695.0,0.00057262]
[1740992039906,0.01454085,91694.0,91662.0,0.163644]
[1740992040120,0.01075624,91699.0,91662.0,0.00012068]
[1740992040334,0.3,91687.0,91662.0,0.32722068]
[1740992040512,0.3,91676.0,91662.0,0.32722068]
[1740992040739,0.3,91676.0,91668.0,0.163633]
[1740992040946,0.3,91676.0,91674.0,0.163621]
[1740992041165,0.1326772,91706.0,91662.0,0.32722068]
[1740992041377,0.00812029,91717.0,91680.0,0.2754567]
[1740992041579,0.00190819,91716.0,91693.0,0.218118]
[1740992041784,0.218064,91716.0,91695.0,0.0001701]
[1740992041992,0.0003402,91713.0,91696.0,0.218112]
[1740992042243,0.218073,91712.0,91695.0,0.0001701]
[1740992042460,0.0003402,91713.0,91695.0,0.0001701]
[1740992042672,0.0003402,91713.0,91712.0,0.163555]
[1740992042877,0.0003402,91713.0,91711.0,0.163557]
[1740992042878,0.0007423,91713.0,91711.0,0.163557]
[1740992043092,0.0007423,91713.0,91697.0,0.218109]
[1740992043304,0.0007423,91713.0,91711.0,0.163556]
[1740992044358,0.0007423,91713.0,91697.0,0.007]
[1740992044585,0.218082,91709.0,91697.0,0.007]
[1740992044802,0.0007423,91713.0,91697.0,0.007]
[1740992044803,0.0007423,91713.0,91711.0,0.163555]
[1740992044952,0.0007423,91713.0,91711.0,0.163556]
[1740992045158,0.218074,91712.0,91701.0,0.163574]
[1740992045359,0.0007423,91713.0,91697.0,0.007]
[1740992045736,0.0007423,91713.0,91711.0,0.163557]
[1740992045942,0.0007423,91713.0,91711.0,0.490657]
[1740992046368,0.0007423,91713.0,91697.0,0.007]
[1740992046771,0.163577,91700.0,91697.0,0.007]
[1740992047113,0.0007423,91713.0,91698.0,0.218107]
[1740992047234,0.3,91712.0,91705.0,0.163566]
[1740992047430,0.463555,91712.0,91705.0,0.163566]
[1740992047630,0.3,91712.0,91696.0,0.3271]
[1740992047836,0.0007423,91713.0,91696.0,0.3271]
[1740992048032,0.0007423,91713.0,91712.0,0.163555]
[1740992048646,0.0007423,91713.0,91711.0,0.007]
[1740992048882,0.0007423,91713.0,91712.0,0.163555]
[1740992049090,0.0007423,91713.0,91708.0,0.218081]
[1740992049310,0.0007423,91713.0,91697.0,0.3271]
[1740992049561,0.0007423,91713.0,91700.0,0.163575]
[1740992049897,0.0007423,91713.0,91702.0,0.163573]
[1740992050102,0.0007423,91713.0,91704.0,0.163569]
[1740992050573,0.047,91710.0,91696.0,0.007]
[1740992050801,0.463582,91697.0,91696.0,0.007]
[1740992051564,0.047,91710.0,91704.0,0.163569]
[1740992051774,0.00190814,91709.0,91696.0,0.007]
[1740992051981,0.218106,91699.0,91696.0,0.007]
[1740992052192,0.21999336,91708.0,91695.0,0.0001701]
[1740992052418,0.163584,91696.0,91695.0,0.0001701]
[1740992052625,0.46549262,91696.0,91695.0,0.0001701]
[1740992052843,0.463584,91696.0,91695.0,0.0001701]
[1740992053042,0.55512485,91696.0,91695.0,0.0001701]
[1740992053464,0.55512485,91696.0,91645.0,0.0965779]
[1740992053465,0.163653,91657.0,91645.0,0.0965779]
[1740992054312,0.46556249,91657.0,91645.0,0.0965779]
[1740992054590,0.463653,91657.0,91645.0,0.0965779]
[1740992055038,0.463653,91657.0,91656.0,0.00212068]
[1740992055272,0.47819385,91657.0,91656.0,0.00212068]
[1740992055732,0.463653,91657.0,91656.0,0.00229088]
[1740992055984,0.47186791,91657.0,91656.0,0.00229088]
[1740992056237,0.17822985,91637.0,91636.0,0.0965779]
[1740992056445,0.64952985,91637.0,91636.0,0.09669867]
[1740992056673,0.64952985,91637.0,91610.0,0.002]
[1740992056674,0.463708,91626.0,91610.0,0.002]
[1740992056911,0.463708,91626.0,91625.0,0.00212017]
[1740992058549,0.47175296,91626.0,91625.0,0.00212017]
[1740992059010,0.163708,91626.0,91625.0,0.00212017]
[1740992059263,0.18015888,91626.0,91625.0,0.00212017]
[1740992059952,0.16561803,91626.0,91625.0,0.00112017]
[1740992060536,0.00191003,91626.0,91625.0,0.00112017]
[1740992060762,0.18015888,91626.0,91625.0,0.00112017]
[1740992061384,0.47828185,91608.0,91605.0,0.0001701]
[1740992061530,0.463741,91608.0,91605.0,0.0001701]
[1740992064230,0.465741,91608.0,91605.0,0.0001701]
[1740992064456,0.540941,91608.0,91605.0,0.0001701]
[1740992064675,0.6386982,91608.0,91605.0,0.0001701]
[1740992064884,0.540941,91608.0,91605.0,0.0001701]
[1740992065132,0.62044284,91608.0,91605.0,0.0001701]
[1740992065334,0.66954284,91608.0,91605.0,0.0001701]
[1740992065554,0.68208369,91608.0,91605.0,0.0001701]
[1740992065743,0.71379374,91608.0,91605.0,0.0001701]
[1740992065948,0.71379374,91608.0,91607.0,0.0011703]
[1740992066166,0.68308369,91608.0,91607.0,0.0011703]
[1740992066636,0.65358185,91608.0,91607.0,0.0011703]
[1740992066960,0.589041,91608.0,91607.0,0.0011703]
[1740992067344,0.588041,91608.0,91607.0,0.0001703]
[1740992067552,0.60258185,91608.0,91607.0,0.0001703]
[1740992067957,0.588041,91608.0,91607.0,0.0001703]
[1740992068162,0.538941,91608.0,91607.0,0.0001703]
[1740992068372,0.16492098,91608.0,91607.0,0.0001703]
[1740992068572,0.16683158,91608.0,91607.0,0.0001703]
[1740992069022,0.0039106,91608.0,91607.0,0.0001703]
[1740992069229,0.163741,91608.0,91607.0,0.0001703]
[1740992069431,0.16565156,91608.0,91607.0,0.0001703]
[1740992069636,0.16865156,91608.0,91607.0,0.0001703]
[1740992069820,0.00491056,91608.0,91586.0,0.09918651]
[1740992070258,0.3,91605.0,91586.0,0.09918651]
[1740992070468,0.3,91602.0,91586.0,0.09918651]
[1740992070672,0.3,91618.0,91586.0,0.09918651]
[1740992070875,0.00191062,91617.0,91586.0,0.09918651]
[1740992071259,0.3,91602.0,91586.0,0.09918651]
[1740992072107,0.00191054,91601.0,91586.0,0.09918651]
[1740992072284,0.00191072,91601.0,91586.0,0.09918651]
[1740992072487,0.002,91608.0,91586.0,0.09918651]
[1740992072710,0.3,91602.0,91586.0,0.09918651]
[1740992073129,0.002,91608.0,91586.0,0.09918651]
[1740992073854,0.00191041,91616.0,91586.0,0.09918651]
[1740992073855,0.163769,91593.0,91586.0,0.09918651]
[1740992074039,0.163778,91587.0,91586.0,0.09918651]
[1740992074239,0.3,91601.0,91586.0,0.09918651]
[1740992074462,0.3,91590.0,91586.0,0.09918651]
[1740992074653,0.00191076,91589.0,91586.0,0.09918651]
[1740992074811,0.00191076,91589.0,91586.0,0.10018651]
[1740992075020,0.01292993,91589.0,91586.0,0.10018651]
[1740992075198,0.01305033,91589.0,91586.0,0.10018651]
[1740992075401,0.163778,91587.0,91586.0,0.10018651]
[1740992075801,0.163778,91587.0,91586.0,0.09918651]
[1740992076004,0.463778,91587.0,91586.0,0.09918651]
[1740992076468,0.47831885,91587.0,91586.0,0.07532022]
[1740992076647,0.5428999,91587.0,91586.0,0.00696001]
[1740992077110,0.5928999,91587.0,91586.0,0.01196001]
[1740992077324,0.463793,91579.0,91578.0,0.002]
[1740992077529,0.541993,91579.0,91578.0,0.002]
[1740992078828,0.3,91579.0,91578.0,0.002]
[1740992079044,0.463793,91579.0,91578.0,0.002]
[1740992079693,0.3,91579.0,91578.0,0.002]
[1740992079910,0.22950657,91589.0,91573.0,0.09981405]
[1740992080110,0.00191098,91588.0,91573.0,0.09981405]
[1740992080353,0.001,91579.0,91573.0,0.09981405]
[1740992080585,0.00191098,91582.0,91573.0,0.09981405]
[1740992080793,0.00191098,91588.0,91573.0,0.09981405]
[1740992081016,0.163798,91576.0,91573.0,0.09981405]
[1740992081237,0.30191098,91578.0,91573.0,0.09981405]
[1740992081459,0.3,91578.0,91573.0,0.09981405]
[1740992081680,0.163801,91574.0,91573.0,0.09998445]
[1740992081923,0.518395,91578.0,91573.0,0.09998445]
[1740992081924,0.3,91578.0,91573.0,0.09998445]
[1740992082137,0.001,91579.0,91578.0,0.164794]
[1740992082351,0.001,91579.0,91578.0,0.001]
[1740992082560,0.001,91579.0,91578.0,0.163794]
[1740992082809,0.0001204,91589.0,91579.0,0.163792]
[1740992083033,0.0001204,91589.0,91573.0,0.10298445]
[1740992083462,0.0001204,91589.0,91573.0,0.09998445]
[1740992083704,0.00203134,91589.0,91573.0,0.09998445]
[1740992083881,0.163801,91574.0,91573.0,0.09998445]
[1740992084131,0.463801,91574.0,91573.0,0.09998445]
[1740992087052,0.464801,91574.0,91573.0,0.10198445]
[1740992087258,0.464801,91574.0,91573.0,0.10232952]
[1740992087397,0.464801,91574.0,91573.0,0.06746092]
[1740992087749,0.463801,91574.0,91573.0,0.06746092]
[1740992088418,0.463801,91574.0,91573.0,0.03459232]
[1740992089470,0.463801,91574.0,91573.0,0.00172372]
[1740992089891,0.163826,91560.0,91559.0,0.09175731]
[1740992090555,0.463826,91560.0,91559.0,0.09175731]
[1740992091194,0.46394633,91560.0,91559.0,0.09175731]
[1740992091412,0.54104633,91560.0,91559.0,0.05888871]
[1740992091865,0.54104633,91560.0,91559.0,0.02602011]
[1740992092514,0.463841,91552.0,91531.0,0.0004]
[1740992092936,0.463841,91552.0,91531.0,0.164277]
[1740992093149,0.463841,91552.0,91531.0,0.0004]
[1740992093364,0.163841,91552.0,91531.0,0.0004]
[1740992093570,0.16575262,91552.0,91531.0,0.0004]
[1740992093779,0.16575262,91552.0,91536.0,0.218492]
[1740992093986,0.00191162,91552.0,91531.0,0.0004]
[1740992094201,0.163836,91555.0,91531.0,0.0004]
[1740992094403,0.00827725,91560.0,91551.0,0.0011706]
[1740992094733,0.163841,91552.0,91551.0,0.0011706]
[1740992094938,0.16575247,91552.0,91551.0,0.0011706]
[1740992095565,0.1657528,91552.0,91551.0,0.0041706]
[1740992096474,0.163841,91552.0,91551.0,0.0041706]
[1740992096730,0.21845,91554.0,91551.0,0.0041706]
[1740992096902,0.163839,91554.0,91551.0,0.0041706]
[1740992097104,0.163841,91552.0,91551.0,0.0041706]
[1740992097526,0.00191166,91557.0,91551.0,0.0041706]
[1740992097730,0.163841,91552.0,91551.0,0.0041706]
[1740992097947,0.00191162,91555.0,91551.0,0.0041706]
[1740992098142,0.21845,91554.0,91551.0,0.0011706]
[1740992098348,0.00191162,91553.0,91551.0,0.0001706]
[1740992098557,0.00191162,91559.0,91551.0,0.0001706]
[1740992098755,0.163839,91553.0,91551.0,0.0001706]
[1740992098962,0.30827725,91560.0,91551.0,0.0001706]
[1740992099180,0.00191148,91559.0,91551.0,0.0001706]
[1740992099519,0.00827725,91560.0,91551.0,0.0001706]
[1740992099723,0.163832,91557.0,91551.0,0.0001706]
[1740992099900,0.00191148,91556.0,91551.0,0.0011706]
[1740992100108,0.163828,91559.0,91551.0,0.0041706]
[1740992100310,0.163834,91557.0,91551.0,0.0031706]
[1740992100512,0.00191145,91558.0,91551.0,0.0001706]
[1740992100922,0.00012033,91560.0,91551.0,0.0001706]
[1740992101133,0.163841,91552.0,91551.0,0.0001706]
[1740992101503,0.4808342,91552.0,91551.0,0.0001706]
[1740992101903,0.463841,91552.0,91551.0,0.0001706]
[1740992103444,0.463852,91546.0,91545.0,0.08409969]
[1740992103749,0.463852,91546.0,91545.0,0.0020395]
[1740992104122,0.3,91545.0,91531.0,0.0004]
[1740992104317,0.463864,91539.0,91531.0,0.0004]
[1740992104775,0.463875,91533.0,91532.0,0.09608017]
[1740992104987,0.3,91533.0,91532.0,0.09608017]
[1740992105224,0.218482,91541.0,91532.0,0.09608017]
[1740992105457,0.163875,91533.0,91532.0,0.09608017]
[1740992105686,0.00191196,91540.0,91532.0,0.09608017]
[1740992105922,0.004384,91558.0,91532.0,0.09608017]
[1740992105923,0.222825,91558.0,91532.0,0.09608017]
[1740992106124,0.004384,91558.0,91532.0,0.09608017]
[1740992106329,0.09520862,91559.0,91532.0,0.14218017]
[1740992106535,0.09520862,91559.0,91533.0,0.00083532]
[1740992106739,0.09520862,91559.0,91532.0,0.14218017]
[1740992106740,0.00191133,91558.0,91532.0,0.14218017]
[1740992106947,0.001,91552.0,91551.0,0.163843]
[1740992107373,0.001,91552.0,91551.0,0.24754824]
[1740992107604,0.001,91552.0,91551.0,0.2467133]
[1740992107813,0.001,91552.0,91551.0,0.24754806]
[1740992108020,0.001,91552.0,91551.0,0.24454806]
[1740992108469,0.09520862,91559.0,91558.0,0.16383]
[1740992109411,0.16157609,91578.0,91558.0,0.16383]
[1740992109613,0.299507,91614.0,91559.0,0.00083436]
[1740992109812,0.09568781,91572.0,91571.0,0.163807]
[1740992110035,0.09568781,91572.0,91571.0,0.268927]
[1740992111134,0.09568781,91572.0,91571.0,0.10512]
[1740992111346,0.09568781,91572.0,91559.0,0.105]
[1740992111556,0.163828,91560.0,91551.0,0.0001703]
[1740992111767,0.00191135,91559.0,91551.0,0.2186273]
[1740992111973,0.09568781,91572.0,91561.0,0.163823]
[1740992112186,0.09568781,91572.0,91551.0,0.0001703]
[1740992112577,0.09568781,91572.0,91570.0,0.163809]
[1740992112817,0.09568781,91572.0,91568.0,0.163812]
[1740992113026,0.09568781,91572.0,91570.0,0.163809]
[1740992113233,0.09568781,91572.0,91570.0,0.162809]
[1740992113439,0.09568781,91572.0,91558.0,0.00723661]
[1740992113570,0.25949381,91572.0,91559.0,0.218438]
[1740992113773,0.3,91584.0,91558.0,0.00723661]
[1740992114000,0.00191112,91583.0,91558.0,0.00723661]
[1740992114200,0.00191112,91583.0,91569.0,0.16381]
[1740992114358,0.00191112,91583.0,91571.0,0.007]
[1740992114617,0.00191112,91583.0,91558.0,0.00723661]
[1740992114865,0.00191112,91584.0,91558.0,0.00023661]
[1740992115110,0.3,91582.0,91558.0,0.00323661]
[1740992115335,0.05,91603.0,91558.0,0.00323661]
[1740992115336,0.00191113,91581.0,91558.0,0.00323661]
[1740992115566,0.163828,91559.0,91558.0,0.00323661]
[1740992115807,0.463828,91559.0,91558.0,0.00323661]